bitfinex/quotes_SOLUSD_20240628
["timestamp","ask_amount","ask_price","bid_price","bid_amount"]
[1719579203255,58.7452,144.55,144.47,0.8175485]
[1719579203445,41.45,144.52,144.47,0.8175485]
[1719579203845,6.9213,144.49,144.47,0.8175485]
[1719579204358,6.9204,144.5,144.47,0.8175485]
[1719579205155,6.9198,144.52,144.47,0.8175485]
[1719579205359,41.45,144.55,144.47,0.8175485]
[1719579205540,6.9199,144.52,144.47,0.8175485]
[1719579205739,41.45,144.57,144.47,0.8175485]
[1719579206214,6.9171,144.57,144.47,0.8175485]
[1719579206363,6.9174,144.57,144.47,0.8175485]
[1719579206565,6.9169,144.58,144.48,6.4533]
[1719579206907,41.45,144.59,144.49,15.9115]
[1719579207195,6.9179,144.56,144.49,15.9115]
[1719579207495,17.2919,144.58,144.49,15.9115]
[1719579207685,17.2982,144.53,144.47,0.8175485]
[1719579207890,41.45,144.54,144.47,0.8175485]
[1719579208199,6.9213,144.48,144.47,0.8175485]
[1719579208803,48.3713,144.48,144.47,0.8175485]
[1719579209460,41.45,144.53,144.47,0.8175485]
[1719579209664,6.9196,144.52,144.47,0.8175485]
[1719579209903,17.2918,144.58,144.48,6.4618]
[1719579210460,41.45,144.57,144.48,6.4618]
[1719579210670,48.3679,144.56,144.49,16.462]
[1719579210884,41.45,144.56,144.49,16.462]
[1719579211192,41.45,144.56,144.48,6.4618]
[1719579211364,41.45,144.53,144.47,0.8175485]
[1719579211694,17.3028,144.49,144.47,0.8175485]
[1719579211997,41.45,144.52,144.47,0.8175485]
[1719579212179,6.9213,144.48,144.47,0.8175485]
[1719579213370,6.9209,144.49,144.47,0.8175485]
[1719579213566,48.3713,144.48,144.47,0.8175485]
[1719579214496,148.3713,144.48,144.47,0.8175485]
[1719579215291,153.99350706,144.48,144.47,0.3175485]
[1719579215674,53.99350706,144.48,144.47,0.3175485]
[1719579215988,153.99350706,144.48,144.47,0.3175485]
[1719579216286,153.99350706,144.48,144.47,4.85e-05]
[1719579216988,156.71480341,144.48,144.47,4.85e-05]
[1719579217192,56.71480341,144.48,144.47,4.85e-05]
[1719579217791,51.09259635,144.48,144.47,4.85e-05]
[1719579220196,6.9228,144.45,144.38,14.8823485]
[1719579220394,48.3724,144.46,144.38,14.8823485]
[1719579220581,41.45,144.49,144.38,14.8823485]
[1719579220768,6.9223,144.47,144.38,14.8823485]
[1719579220968,17.3008,144.51,144.38,14.8823485]
[1719579220969,6.9236,144.44,144.38,14.8823485]
[1719579221296,6.9213,144.48,144.38,14.8823485]
[1719579221599,6.921,144.49,144.38,14.8823485]
[1719579221899,6.92,144.51,144.38,14.8823485]
[1719579222105,48.37,144.51,144.38,14.8823485]
[1719579222276,48.3705,144.5,144.38,14.8823485]
[1719579223395,6.9204,144.5,144.38,14.8823485]
[1719579224003,6.9211,144.49,144.38,14.8823485]
[1719579224367,41.45,144.5,144.38,14.8823485]
[1719579224368,48.3705,144.5,144.38,14.8823485]
[1719579225188,41.45,144.52,144.38,14.8823485]
[1719579225366,6.9199,144.51,144.38,14.8823485]
[1719579226085,6.9204,144.5,144.38,14.8823485]
[1719579226884,41.45,144.52,144.38,14.8823485]
[1719579227069,6.9205,144.5,144.38,14.8823485]
[1719579227882,48.3701,144.51,144.38,14.8823485]
[1719579228484,6.9204,144.5,144.38,14.8823485]
[1719579228888,6.9201,144.51,144.38,14.8823485]
[1719579229309,6.9201,144.51,144.39,6.6288]
[1719579230212,6.9195,144.52,144.4,16.0171]
[1719579230383,6.9195,144.52,144.41,6.3222]
[1719579231491,6.9187,144.54,144.43,6.0166]
[1719579232028,6.9191,144.53,144.43,6.0166]
[1719579232483,6.919,144.53,144.43,6.0166]
[1719579232680,6.9187,144.54,144.43,6.0166]
[1719579232986,41.45,144.56,144.43,6.0166]
[1719579233318,6.9186,144.54,144.43,6.0166]
[1719579233520,6.919,144.53,144.43,6.0166]
[1719579234715,41.45,144.54,144.43,6.0166]
[1719579235125,6.9191,144.53,144.43,6.0166]
[1719579236603,41.45,144.57,144.44,16.5569]
[1719579237097,41.45,144.6,144.45,6.1825]
[1719579237442,41.45,144.6,144.46,16.2969]
[1719579237635,6.9167,144.58,144.46,16.2969]
[1719579238004,6.9167,144.58,144.47,6.119]
[1719579238307,6.9171,144.57,144.47,6.119]
[1719579239327,6.9163,144.59,144.47,6.119]
[1719579239533,6.9168,144.58,144.47,6.119]
[1719579239964,6.9161,144.59,144.47,6.119]
[1719579240529,6.9166,144.58,144.47,6.119]
[1719579240748,6.917,144.57,144.47,6.119]
[1719579240948,17.2869,144.62,144.48,16.0479]
[1719579241128,6.916,144.6,144.5,16.0479]
[1719579241443,6.9152,144.61,144.5,16.0479]
[1719579241616,21.6005,144.62,144.5,16.0479]
[1719579241818,6.9169,144.58,144.5,16.0479]
[1719579242013,6.5434,144.62,144.5,16.0479]
[1719579242014,6.9176,144.56,144.5,16.0479]
[1719579242214,6.5434,144.62,144.5,16.0479]
[1719579242428,6.9164,144.59,144.5,16.0479]
[1719579242743,121.6953,144.66,144.5,16.0479]
[1719579242744,38.9777,144.66,144.5,16.0479]
[1719579243045,6.9153,144.61,144.5,16.0479]
[1719579243641,38.9777,144.66,144.5,16.0479]
[1719579243846,6.9151,144.61,144.5,16.0479]
[1719579244420,6.9147,144.62,144.5,16.0479]
[1719579244615,17.2824,144.66,144.51,6.6057]
[1719579244966,17.2824,144.66,144.45,45.8]
[1719579244967,6.9133,144.65,144.53,6.6057]
[1719579245257,6.9133,144.65,144.54,15.2062]
[1719579245442,6.9119,144.68,144.56,15.2062]
[1719579245762,6.9123,144.67,144.57,6.6489]
[1719579245920,17.2766,144.71,144.57,6.6489]
[1719579246314,6.9132,144.65,144.57,6.6489]
[1719579246545,17.2787,144.69,144.57,6.6489]
[1719579246743,6.9137,144.64,144.57,6.6489]
[1719579247124,17.2787,144.69,144.57,6.6489]
[1719579247321,6.9147,144.62,144.57,6.6489]
[1719579247574,6.9145,144.63,144.57,6.6489]
[1719579247768,6.9142,144.63,144.57,6.6489]
[1719579248067,17.2811,144.67,144.57,6.6489]
[1719579248274,6.9138,144.64,144.57,6.6489]
[1719579248458,48.3634,144.65,144.57,6.6489]
[1719579248780,6.9137,144.64,144.57,6.6489]
[1719579248952,41.45,144.62,144.57,6.6489]
[1719579249286,41.45,144.66,144.57,6.6489]
[1719579249495,48.3645,144.63,144.57,6.6489]
[1719579249646,6.9147,144.62,144.57,6.6489]
[1719579249988,6.9151,144.61,144.57,6.6489]
[1719579250286,6.9147,144.62,144.57,6.6489]
[1719579250461,6.9141,144.64,144.57,6.6489]
[1719579250664,6.9134,144.65,144.57,6.6489]
[1719579250865,23.5611,144.67,144.57,6.6489]
[1719579251065,6.913,144.66,144.57,6.6489]
[1719579251490,6.9133,144.65,144.57,6.6489]
[1719579252667,6.9137,144.64,144.57,6.6489]
[1719579252869,2.70367043,144.69,144.57,6.6489]
[1719579252870,6.9133,144.65,144.57,6.6489]
[1719579253254,6.9128,144.66,144.57,6.6489]
[1719579253481,6.913,144.66,144.57,6.6489]
[1719579253798,6.1218,144.72,144.57,6.6489]
[1719579254084,6.9116,144.69,144.58,15.0677]
[1719579254459,16.3177,144.74,144.58,15.0677]
[1719579254460,6.9125,144.67,144.58,15.0677]
[1719579254798,58.7228,144.74,144.59,6.1395]
[1719579254959,6.9109,144.7,144.6,16.0868]
[1719579255191,6.9114,144.69,144.6,16.0868]
[1719579255391,6.9108,144.7,144.6,16.0868]
[1719579256020,6.9114,144.69,144.6,16.0868]
[1719579256397,6.16980419,144.76,144.62,22.6535]
[1719579256600,6.9094,144.73,144.63,0.872677]
[1719579257017,17.2697,144.77,144.63,0.872677]
[1719579257018,6.909,144.74,144.63,0.872677]
[1719579258514,6.9073,144.78,144.64,22.5094]
[1719579258689,182.1771,144.81,144.64,22.5094]
[1719579258892,17.267,144.79,144.64,22.5094]
[1719579259116,6.1987,144.81,144.64,22.5094]
[1719579259328,17.2636,144.82,144.66,22.075]
[1719579259494,6.9075,144.77,144.66,22.075]
[1719579259698,17.2636,144.82,144.66,22.075]
[1719579260016,17.2636,144.82,144.67,15.1118]
[1719579260213,17.2636,144.82,144.68,6.5077]
[1719579260403,6.9071,144.78,144.68,6.5077]
[1719579260810,6.9066,144.79,144.68,6.5077]
[1719579261119,6.9066,144.79,144.69,15.4255]
[1719579261329,6.9061,144.8,144.69,15.4255]
[1719579261521,6.9065,144.79,144.69,15.4255]
[1719579262123,6.9066,144.79,144.69,15.4255]
[1719579262301,6.9062,144.8,144.69,15.4255]
[1719579262502,6.9065,144.79,144.69,15.4255]
[1719579263455,17.2648,144.81,144.69,15.4255]
[1719579263641,17.2669,144.79,144.69,15.4255]
[1719579263843,6.9078,144.77,144.69,15.4255]
[1719579264480,6.909,144.74,144.69,15.4255]
[1719579264646,6.9081,144.76,144.69,15.4255]
[1719579264845,6.9076,144.77,144.69,15.4255]
[1719579265050,6.9079,144.76,144.69,15.4255]
[1719579265253,6.9085,144.75,144.69,15.4255]
[1719579266664,17.2666,144.79,144.69,15.4255]
[1719579266868,6.909,144.74,144.69,15.4255]
[1719579267460,6.9085,144.75,144.69,15.4255]
[1719579267880,6.908,144.76,144.69,15.4255]
[1719579268168,6.9066,144.79,144.69,15.4255]
[1719579268549,0.8175485,144.83,144.7,6.5196]
[1719579268757,0.8175485,144.83,144.71,15.1855]
[1719579268975,6.9059,144.81,144.71,15.1855]
[1719579269142,6.9052,144.82,144.71,15.1855]
[1719579269346,6.9051,144.82,144.72,6.0926]
[1719579270046,6.9056,144.81,144.72,6.0926]
[1719579270366,0.8175485,144.83,144.73,15.1279]
[1719579270672,6.9054,144.82,144.73,15.1279]
[1719579271247,0.8175485,144.83,144.73,15.1279]
[1719579274670,0.8175485,144.83,144.67,56.94]
[1719579274671,0.8175485,144.83,144.75,21.7798]
[1719579274849,0.8175485,144.83,144.76,0.96322192]
[1719579275054,0.8175485,144.83,144.77,0.96315538]
[1719579275241,0.8175485,144.83,144.79,16.6235]
[1719579275571,0.8175485,144.83,144.8,1.38068478]
[1719579275739,6.9023,144.88,144.81,6.3205]
[1719579275948,6.9023,144.88,144.82,1.3804941]
[1719579276349,17.2517,144.92,144.82,1.3804941]
[1719579276350,6.9027,144.87,144.82,1.3804941]
[1719579276587,6.9023,144.88,144.82,1.38080366]
[1719579276753,6.9028,144.87,144.82,1.38080366]
[1719579277148,34.5016,144.93,144.81,6.3205]
[1719579277149,6.9046,144.83,144.81,6.3205]
[1719579277373,6.9051,144.82,144.79,16.6235]
[1719579277563,6.9057,144.81,144.79,16.6235]
[1719579278381,6.906,144.8,144.79,16.6235]
[1719579278699,6.9066,144.79,144.77,6.5795]
[1719579278870,17.2629,144.82,144.75,16.4916]
[1719579278871,6.907,144.78,144.75,16.4916]
[1719579279800,5.31165151,144.83,144.75,16.4916]
[1719579279979,6.9052,144.82,144.75,16.4916]
[1719579280299,12.21645151,144.83,144.75,16.4916]
[1719579280504,34.5178,144.86,144.75,16.4916]
[1719579280699,6.9056,144.81,144.75,16.4916]
[1719579281004,6.9051,144.82,144.75,16.4916]
[1719579281192,5.31165151,144.85,144.75,16.4916]
[1719579281365,6.9059,144.81,144.75,16.4916]
[1719579281570,6.9052,144.82,144.75,16.4916]
[1719579281976,5.31165151,144.85,144.75,16.4916]
[1719579281977,6.9056,144.81,144.75,16.4916]
[1719579282181,6.9052,144.82,144.75,16.4916]
[1719579282394,6.9057,144.81,144.75,16.4916]
[1719579283377,6.906,144.8,144.75,16.4916]
[1719579283693,6.907,144.78,144.75,16.4916]
[1719579283899,17.2629,144.82,144.75,16.4916]
[1719579284078,6.9062,144.8,144.75,16.4916]
[1719579284476,22.57175151,144.85,144.75,16.4916]
[1719579284677,6.9059,144.81,144.75,16.4916]
[1719579284873,6.906,144.8,144.75,16.4916]
[1719579285301,22.57175151,144.85,144.75,16.4916]
[1719579285490,6.9066,144.79,144.75,16.4916]
[1719579285891,17.2618,144.83,144.75,16.4916]
[1719579286088,6.9075,144.77,144.75,16.4916]
[1719579286416,6.9071,144.78,144.75,16.4916]
[1719579287408,5.60054039,144.82,144.71,15.4834]
[1719579287409,6.9088,144.75,144.71,15.4834]
[1719579287988,6.9078,144.77,144.71,15.4834]
[1719579288191,6.9076,144.77,144.71,15.4834]
[1719579288719,5.60054039,144.82,144.71,15.4834]
[1719579288904,6.9076,144.77,144.71,15.4834]
[1719579289090,6.9083,144.76,144.71,15.4834]
[1719579289691,6.9069,144.79,144.71,15.4834]
[1719579289913,6.907,144.78,144.71,15.4834]
[1719579290124,6.9065,144.79,144.71,15.4834]
[1719579290293,6.9071,144.78,144.71,15.4834]
[1719579290505,6.9064,144.8,144.71,15.4834]
[1719579290826,12.50594039,144.82,144.71,15.4834]
[1719579291012,6.32869307,144.84,144.71,15.4834]
[1719579291200,23.58929307,144.84,144.71,15.4834]
[1719579291521,6.9056,144.81,144.71,15.4834]
[1719579292593,17.263,144.82,144.71,15.4834]
[1719579293314,17.2654,144.8,144.71,15.4834]
[1719579293637,6.9076,144.77,144.71,15.4834]
[1719579293937,6.9078,144.77,144.71,15.4834]
[1719579294307,6.9076,144.77,144.71,15.4834]
[1719579294518,17.2654,144.8,144.71,15.4834]
[1719579294917,6.908,144.76,144.71,15.4834]
[1719579295731,17.2654,144.8,144.71,15.4834]
[1719579295929,6.9078,144.77,144.71,15.4834]
[1719579296737,6.9071,144.78,144.71,15.4834]
[1719579297028,6.9067,144.79,144.71,15.4834]
[1719579297231,6.9071,144.78,144.71,15.4834]
[1719579297404,5.60054039,144.82,144.71,15.4834]
[1719579297604,6.9066,144.79,144.71,15.4834]
[1719579298518,6.9061,144.8,144.71,15.4834]
[1719579298905,6.9066,144.79,144.71,15.4834]
[1719579299105,6.907,144.78,144.71,15.4834]
[1719579299607,6.9078,144.77,144.71,15.4834]
[1719579300817,6.9081,144.76,144.71,15.4834]
[1719579301016,17.2666,144.79,144.71,15.4834]
[1719579301220,6.9086,144.75,144.71,15.4834]
[1719579301620,6.9081,144.76,144.71,15.4834]
[1719579301821,5.60054039,144.78,144.71,15.4834]
[1719579302451,5.60054039,144.78,144.72,1.04633424]
[1719579302824,6.9056,144.81,144.71,15.4834]
[1719579303145,5.60054039,144.84,144.71,15.4834]
[1719579303321,6.9057,144.81,144.71,15.4834]
[1719579303736,6.906,144.8,144.71,15.4834]
[1719579304148,5.60054039,144.84,144.71,15.4834]
[1719579304342,6.9077,144.77,144.71,15.4834]
[1719579304646,6.9076,144.77,144.71,15.4834]
[1719579304849,23.59099307,144.83,144.72,1.38168668]
[1719579305144,11.38363023,144.82,144.71,15.4834]
[1719579305341,11.38333748,144.81,144.71,15.4834]
[1719579305659,5.60054039,144.8,144.71,15.4834]
[1719579306228,6.9068,144.79,144.71,15.4834]
[1719579306734,6.907,144.79,144.71,15.4834]
[1719579307330,12.50754039,144.79,144.71,15.4834]
[1719579307531,6.9071,144.78,144.71,15.4834]
[1719579308262,5.60054039,144.79,144.71,15.4834]
[1719579308470,6.9056,144.81,144.72,1.03211953]
[1719579308766,11.92923346,144.83,144.72,1.03211953]
[1719579308965,6.9069,144.79,144.73,7.4187016]
[1719579309143,6.9069,144.79,144.73,6.0373]
[1719579310738,6.9072,144.78,144.73,6.0373]
[1719579311162,6.9088,144.75,144.73,6.0373]
[1719579311365,6.908,144.76,144.73,6.0373]
[1719579311551,6.9081,144.76,144.73,6.0373]
[1719579311868,5.60054039,144.78,144.73,6.0373]
[1719579312066,6.9064,144.8,144.73,6.0373]
[1719579313064,6.32869307,144.83,144.74,1.38151997]
[1719579313285,13.23369307,144.83,144.74,1.38151997]
[1719579313568,58.8379,144.87,144.75,16.1005]
[1719579313773,6.904,144.85,144.75,16.1005]
[1719579314068,6.9041,144.84,144.75,16.1005]
[1719579314581,6.9047,144.83,144.75,16.1005]
[1719579315660,6.9042,144.84,144.75,16.1005]
[1719579316293,58.8379,144.87,144.75,16.1005]
[1719579316471,11.39875572,144.86,144.75,16.1005]
[1719579316682,6.9042,144.84,144.75,16.1005]
[1719579317186,58.8379,144.87,144.75,16.1005]
[1719579317499,41.58,144.85,144.76,1.3813843]
[1719579317793,6.9047,144.83,144.75,16.1005]
[1719579318013,41.58,144.85,144.75,16.1005]
[1719579318292,6.9066,144.79,144.75,16.1005]
[1719579318497,6.9062,144.8,144.75,16.1005]
[1719579319167,6.9057,144.81,144.75,16.1005]
[1719579319906,6.906,144.8,144.75,16.1005]
[1719579320395,6.9057,144.81,144.75,16.1005]
[1719579320598,6.9052,144.82,144.75,16.1005]
[1719579320982,6.9057,144.81,144.75,16.1005]
[1719579321699,6.9061,144.8,144.75,16.1005]
[1719579322273,6.9057,144.81,144.75,16.1005]
[1719579324409,6.9053,144.82,144.75,16.1005]
[1719579325006,6.9056,144.81,144.75,16.1005]
[1719579325202,5.60054039,144.83,144.75,16.1005]
[1719579325415,6.9057,144.81,144.75,16.1005]
[1719579325718,6.9062,144.8,144.75,16.1005]
[1719579326195,6.9066,144.79,144.75,16.1005]
[1719579326402,6.9078,144.77,144.75,16.1005]
[1719579326593,6.907,144.78,144.75,16.1005]
[1719579327118,58.8452,144.8,144.75,16.1005]
[1719579327416,6.9085,144.75,144.73,6.0373]
[1719579327795,6.9081,144.76,144.73,6.0373]
[1719579327990,6.9071,144.78,144.73,6.0373]
[1719579328615,6.9076,144.77,144.73,6.0373]
[1719579330293,64.44744039,144.79,144.73,6.0373]
[1719579330505,6.9091,144.74,144.71,15.836]
[1719579330696,6.9094,144.73,144.71,15.836]
[1719579331222,6.9089,144.74,144.71,15.836]
[1719579331413,6.9086,144.75,144.71,15.836]
[1719579331724,6.9081,144.76,144.71,15.836]
[1719579331936,6.9085,144.75,144.71,15.836]
[1719579332217,12.50854039,144.76,144.71,15.836]
[1719579332607,6.9084,144.75,144.71,15.836]
[1719579333326,6.9078,144.77,144.71,15.836]
[1719579333504,6.907,144.78,144.71,15.836]
[1719579333704,12.50704039,144.8,144.71,15.836]
[1719579334098,6.9066,144.79,144.71,15.836]
[1719579334293,6.907,144.78,144.71,15.836]
[1719579336013,6.9084,144.75,144.71,15.836]
[1719579336322,17.2665,144.79,144.71,15.836]
[1719579337925,6.9085,144.75,144.71,15.836]
[1719579338250,47.18054039,144.78,144.71,15.836]
[1719579338751,6.9092,144.74,144.71,15.836]
[1719579339045,6.9105,144.71,144.69,6.03]
[1719579339235,6.9105,144.71,144.68,15.3971]
[1719579339439,6.911,144.7,144.68,15.3971]
[1719579340633,6.9105,144.71,144.68,15.3971]
[1719579341247,6.9108,144.7,144.66,6.549]
[1719579341424,47.18054039,144.74,144.66,6.549]
[1719579341425,6.9114,144.69,144.66,6.549]
[1719579341861,6.9114,144.69,144.65,15.7717]
[1719579342030,6.911,144.7,144.65,15.7717]
[1719579342425,6.9105,144.71,144.65,15.7717]
[1719579342846,6.9114,144.69,144.65,15.7717]
[1719579343648,5.60054039,144.71,144.65,15.7717]
[1719579343952,6.9115,144.69,144.65,15.7717]
[1719579344143,6.9118,144.68,144.65,15.7717]
[1719579344527,6.9121,144.68,144.65,15.7717]
[1719579345230,6.9113,144.69,144.65,15.7717]
[1719579345440,6.912,144.68,144.65,15.7717]
[1719579345635,6.9127,144.67,144.65,15.7717]
[1719579345841,6.9127,144.67,144.62,6.4754]
[1719579346038,64.45684039,144.71,144.62,6.4754]
[1719579346268,41.58,144.68,144.62,6.4754]
[1719579346475,6.9136,144.65,144.62,6.4754]
[1719579347261,6.9136,144.65,144.61,16.1714]
[1719579347960,6.9129,144.66,144.61,16.1714]
[1719579348749,47.18054039,144.66,144.61,16.1714]
[1719579349070,6.9133,144.65,144.61,16.1714]
[1719579349447,53.31034039,144.66,144.54,32.12]
[1719579349762,53.31034039,144.66,144.47,0.8175485]
[1719579349763,41.58,144.63,144.52,21.3647]
[1719579349944,6.915,144.62,144.52,21.3647]
[1719579350267,13.01295151,144.62,144.52,21.3647]
[1719579350444,6.09815151,144.62,144.52,21.3647]
[1719579351264,6.9162,144.59,144.52,21.3647]
[1719579352070,6.9161,144.59,144.52,21.3647]
[1719579352364,6.09815151,144.62,144.52,21.3647]
[1719579352741,41.58,144.61,144.52,21.3647]
[1719579352960,6.9177,144.56,144.52,21.3647]
[1719579354089,6.918,144.55,144.52,21.3647]
[1719579354260,6.09815151,144.6,144.52,21.3647]
[1719579354579,6.9177,144.56,144.52,21.3647]
[1719579354890,17.2904,144.59,144.53,1.38369645]
[1719579354891,6.9162,144.59,144.53,1.38369645]
[1719579355384,23.38185151,144.65,144.54,1.38340177]
[1719579355560,23.38185151,144.65,144.55,15.8606]
[1719579355561,6.09815151,144.65,144.55,15.8606]
[1719579355884,6.9142,144.63,144.56,6.0003]
[1719579356257,64.95815151,144.68,144.56,6.0003]
[1719579356456,6.9147,144.62,144.56,6.0003]
[1719579356696,6.9143,144.63,144.56,6.0003]
[1719579356866,6.9138,144.64,144.56,6.0003]
[1719579357183,6.9142,144.63,144.56,6.0003]
[1719579357567,6.9142,144.63,144.48,22.867]
[1719579357568,70.34365151,144.63,144.48,22.867]
[1719579357895,6.9188,144.54,144.48,22.867]
[1719579358200,6.9189,144.53,144.48,22.867]
[1719579358571,6.92,144.51,144.48,22.867]
[1719579359661,6.918,144.55,144.48,22.867]
[1719579359866,6.9191,144.53,144.48,22.867]
[1719579360089,17.2911,144.59,144.48,22.867]
[1719579360090,6.9186,144.54,144.48,22.867]
[1719579360398,6.9185,144.54,144.48,22.867]
[1719579360600,6.9181,144.55,144.48,22.867]
[1719579361672,6.9189,144.54,144.48,22.867]
[1719579362187,17.2933,144.57,144.48,22.867]
[1719579362383,6.09815151,144.57,144.48,22.867]
[1719579362595,6.9195,144.52,144.48,22.867]
[1719579364471,6.9191,144.53,144.48,22.867]
[1719579365406,17.2982,144.53,144.48,22.867]
[1719579365707,6.9208,144.49,144.48,22.867]
[1719579365884,6.9205,144.5,144.48,22.867]
[1719579367007,6.9213,144.48,144.44,22.444]
[1719579369218,6.9208,144.5,144.44,22.444]
[1719579369921,6.921,144.49,144.44,22.444]
[1719579370112,64.97585151,144.53,144.44,22.444]
[1719579370425,6.9205,144.5,144.44,22.444]
[1719579370589,13.01715151,144.53,144.45,1.38421246]
[1719579370923,6.9194,144.52,144.44,22.444]
[1719579371224,17.2945,144.56,144.44,22.444]
[1719579371400,6.9195,144.52,144.44,22.444]
[1719579371798,6.9191,144.53,144.44,22.444]
[1719579371997,6.9186,144.54,144.44,22.444]
[1719579372400,6.9189,144.53,144.44,22.444]
[1719579372829,6.9197,144.52,144.44,22.444]
[1719579373806,6.919,144.53,144.44,22.444]
[1719579374132,6.09815151,144.58,144.49,6.0172]
[1719579374810,50.3667,144.64,144.49,6.0172]
[1719579374811,58.8674,144.62,144.5,1.38372489]
[1719579375129,64.96555151,144.62,144.49,6.0172]
[1719579375448,6.9167,144.58,144.49,6.0172]
[1719579375632,6.9162,144.59,144.5,17.39127908]
[1719579376152,6.32962466,144.63,144.44,302.9]
[1719579376153,6.9156,144.61,144.51,22.3027]
[1719579376331,6.9157,144.6,144.51,22.3027]
[1719579376539,6.9162,144.59,144.51,22.3027]
[1719579376729,6.9159,144.6,144.51,22.3027]
[1719579376927,6.9161,144.59,144.51,22.3027]
[1719579377255,6.9166,144.58,144.51,22.3027]
[1719579377543,17.2883,144.61,144.51,22.3027]
[1719579377845,47.67815151,144.65,144.51,22.3027]
[1719579378146,6.9162,144.59,144.51,22.3027]
[1719579378524,17.2871,144.62,144.51,22.3027]
[1719579378724,6.9162,144.59,144.51,22.3027]
[1719579379246,17.2871,144.62,144.51,22.3027]
[1719579379247,6.9156,144.6,144.51,22.3027]
[1719579379429,17.2871,144.62,144.51,22.3027]
[1719579379761,23.38215151,144.65,144.52,16.41090105]
[1719579379924,23.38215151,144.65,144.53,6.1602]
[1719579380123,6.915,144.62,144.53,6.1602]
[1719579380323,23.38215151,144.65,144.53,6.1602]
[1719579380823,6.9154,144.61,144.53,6.1602]
[1719579381331,6.9157,144.6,144.53,6.1602]
[1719579382148,6.9152,144.61,144.53,6.1602]
[1719579382454,6.9158,144.6,144.53,6.1602]
[1719579382823,6.9152,144.61,144.53,6.1602]
[1719579384660,6.9144,144.63,144.54,16.61193413]
[1719579384833,6.9144,144.63,144.55,1.38296228]
[1719579385037,6.9144,144.63,144.54,15.2288]
[1719579386553,6.9147,144.62,144.54,15.2288]
[1719579386750,17.2847,144.64,144.54,15.2288]
[1719579386955,6.9161,144.59,144.54,15.2288]
[1719579387144,6.9158,144.6,144.54,15.2288]
[1719579387737,6.9161,144.59,144.54,15.2288]
[1719579388164,6.9166,144.58,144.54,15.2288]
[1719579388344,17.2894,144.6,144.54,15.2288]
[1719579388546,6.918,144.55,144.54,15.2288]
[1719579390047,6.9177,144.56,144.54,15.2288]
[1719579390574,6.34370706,144.58,144.54,15.2288]
[1719579390775,6.34370706,144.58,144.5,21.9509]
[1719579390776,6.918,144.55,144.5,21.9509]
[1719579391165,6.34370706,144.58,144.5,21.9509]
[1719579391166,23.63530706,144.58,144.5,21.9509]
[1719579391478,6.919,144.53,144.5,21.9509]
[1719579391679,6.9179,144.56,144.5,21.9509]
[1719579392375,6.34370706,144.57,144.5,21.9509]
[1719579392954,23.63650706,144.57,144.5,21.9509]
[1719579393278,6.9188,144.54,144.5,21.9509]
[1719579393873,6.9181,144.55,144.5,21.9509]
[1719579394381,6.9186,144.54,144.5,21.9509]
[1719579394956,6.9182,144.55,144.5,21.9509]
[1719579395880,23.63650706,144.57,144.5,21.9509]
[1719579396175,6.9198,144.52,144.5,21.9509]
[1719579396379,6.9198,144.52,144.5,15.7372]
[1719579396578,6.34370706,144.54,144.47,0.8175485]
[1719579396876,6.9207,144.5,144.47,0.8175485]
[1719579397463,6.34370706,144.52,144.47,0.8175485]
[1719579397665,13.26320706,144.52,144.47,0.8175485]
[1719579397972,6.9186,144.54,144.47,0.8175485]
[1719579398173,23.63760706,144.56,144.47,0.8175485]